bitfinex/quotes_SOLUSD_20220210
["timestamp","ask_amount","ask_price","bid_price","bid_amount"]
[1644461495609,13.3529,112.44,112.36,20.8]
[1644461495908,2.837,112.45,112.37,43.84291313]
[1644461496107,24.7392,112.46,112.37,43.84291313]
[1644461496307,24.7392,112.46,112.38,12.46]
[1644461496508,24.7392,112.46,112.39,41.84398559]
[1644461496907,24.7392,112.46,112.39,24.04227046]
[1644461497311,2.856,112.48,112.4,12.46]
[1644461498006,8.23350994,112.48,112.4,12.46]
[1644461498808,33.38187497,112.48,112.37,4.446]
[1644461499009,33.38187497,112.48,112.35,4.447]
[1644461499208,33.38187497,112.48,112.32,155.81]
[1644461499209,23.9044,112.47,112.36,12.46]
[1644461499608,11.80016503,112.46,112.36,12.46]
[1644461499811,12.69272123,112.46,112.36,56.85509352]
[1644461500712,13.3537,112.43,112.36,56.85509352]
[1644461500911,18.3529543,112.43,112.36,12.46]
[1644461502616,13.3537,112.43,112.36,12.46]
[1644461502812,13.351,112.45,112.36,12.46]
[1644461503012,13.351,112.45,112.36,168.27]
[1644461503615,19.53669771,112.45,112.37,41.33961751]
[1644461503814,19.53669771,112.45,112.38,12.46]
[1644461504919,21.74389305,112.45,112.36,12.46]
[1644461505122,2.856,112.44,112.34,56.84453672]
[1644461505319,13.3578,112.41,112.34,56.84453672]
[1644461505719,13.3578,112.41,112.34,12.46]
[1644461506721,13.3578,112.41,112.34,60.5063168]
[1644461508121,13.3578,112.41,112.29,155.81]
[1644461508323,15.56499534,112.41,112.27,4.449]
[1644461508529,2.857,112.4,112.25,4.45]
[1644461508725,13.362,112.36,112.26,12.46]
[1644461508925,13.362,112.36,112.27,12.46]
[1644461509123,100.11648131,112.41,112.28,12.46]
[1644461509323,2.858,112.42,112.3,39.66318123]
[1644461509524,2.856,112.44,112.32,46.53723356]
[1644461509745,130.1172,112.46,112.34,47.37156335]
[1644461509924,13.3551,112.42,112.35,12.46]
[1644461510123,13.3551,112.42,112.36,46.63913784]
[1644461510624,114.3,112.45,112.36,56.46713784]
[1644461510824,47.3439,112.46,112.37,12.46]
[1644461511427,4.81517965,112.45,112.37,12.46]
[1644461511725,13.3524,112.44,112.37,12.46]
[1644461511924,13.3524,112.44,112.38,37.87699718]
[1644461511925,16.2024,112.44,112.38,37.87699718]
[1644461512126,13.3524,112.44,112.38,37.87699718]
[1644461513728,13.3524,112.44,112.38,50.33699718]
[1644461517355,13.3524,112.44,112.38,12.46]
[1644461518455,13.3524,112.44,112.38,60.60976148]
[1644461518657,13.3524,112.44,112.38,71.71376148]
[1644461520556,16.2054,112.46,112.38,71.71376148]
[1644461520761,2.48205752,112.45,112.38,71.71376148]
[1644461521157,7.00691188,112.45,112.38,12.46]
[1644461521357,2.48205752,112.44,112.38,12.46]
[1644461521959,15.83345752,112.44,112.38,12.46]
[1644461522158,2.48205752,112.43,112.38,12.46]
[1644461525164,2.48205752,112.43,112.39,43.29903814]
[1644461525365,2.48205752,112.43,112.39,55.75903814]
[1644461526764,6.24194226,112.45,112.39,55.75903814]
[1644461527266,3.75988474,112.45,112.39,55.75903814]
[1644461527565,3.75988474,112.45,112.39,62.81303814]
[1644461528164,2.48697639,112.43,112.39,62.81303814]
[1644461528867,0.00697639,112.43,112.39,62.81303814]
[1644461529065,2.48205752,112.47,112.39,63.06303814]
[1644461529267,6.27886533,112.48,112.4,6.0]
[1644461529569,2.48205752,112.48,112.41,12.46]
[1644461529765,2.48205752,112.47,112.42,40.71034554]
[1644461529965,2.48205752,112.47,112.43,12.46]
[1644461530166,17.55139967,112.49,112.44,47.54709849]
[1644461530167,2.48205752,112.48,112.44,47.54709849]
[1644461530365,2.48205752,112.48,112.43,12.46]
[1644461530565,2.48205752,112.48,112.43,11.96]
[1644461531068,15.82805752,112.48,112.43,11.96]
[1644461531267,2.48205752,112.47,112.41,12.46]
[1644461532166,2.48205752,112.48,112.41,12.46]
[1644461532369,6.24194226,112.48,112.41,12.46]
[1644461532767,13.3487,112.46,112.41,12.46]
[1644461533067,2.48205752,112.45,112.41,12.46]
[1644461533970,2.48205752,112.45,112.38,155.81]
[1644461533971,15.83125752,112.45,112.42,0.80579248]
[1644461534168,13.3492,112.45,112.42,0.80579248]
[1644461534368,2.48205752,112.44,112.42,0.80579248]
[1644461534570,2.48205752,112.46,112.42,0.80579248]
[1644461534971,2.782,112.45,112.42,0.30579248]
[1644461535171,2.48205752,112.44,112.42,0.30579248]
[1644461535373,15.83295752,112.44,112.42,0.30579248]
[1644461535571,13.3509,112.44,112.42,0.30579248]
[1644461538478,13.3482,112.46,112.42,0.30579248]
[1644461538779,2.48752469,112.45,112.42,0.30579248]
[1644461539084,2.48752469,112.45,112.43,3.03219996]
[1644461539280,2.48752469,112.45,112.43,39.08977679]
[1644461540380,2.48752469,112.45,112.44,6.06439993]
[1644461540680,2.48752469,112.45,112.43,39.08977679]
[1644461541083,2.48752469,112.47,112.43,39.08977679]
[1644461542785,13.3462,112.48,112.43,39.08977679]
[1644461543685,13.3462,112.48,112.42,12.76579248]
[1644461543885,2.48691869,112.47,112.42,12.76579248]
[1644461544490,15.83361869,112.47,112.42,12.76579248]
[1644461544687,13.3467,112.47,112.42,55.69060094]
[1644461544888,13.3467,112.47,112.42,12.76579248]
[1644461545687,2.48634902,112.46,112.42,12.76579248]
[1644461545889,13.3467,112.47,112.42,12.76579248]
[1644461546088,2.48619431,112.46,112.42,12.76579248]
[1644461548793,15.83379431,112.46,112.42,12.76579248]
[1644461549193,2.48619431,112.45,112.42,12.76579248]
[1644461549596,13.3476,112.46,112.42,12.76579248]
[1644461549798,13.3465,112.47,112.42,12.76579248]
[1644461549993,2.48924425,112.46,112.42,12.76579248]
[1644461550597,2.48924425,112.46,112.42,0.30579248]
[1644461551214,2.48924425,112.46,112.42,1e-08]
[1644461551415,0.03692307,112.46,112.42,1e-08]
[1644461551616,2.48924425,112.45,112.42,1e-08]
[1644461551816,13.3503,112.44,112.42,1e-08]
[1644461552818,2.48798806,112.43,112.42,1e-08]
[1644461553222,15.83898806,112.43,112.42,1e-08]
[1644461553421,13.351,112.43,112.42,1e-08]
[1644461553620,15.83898806,112.43,112.42,1e-08]
[1644461554023,30.10198806,112.43,112.42,1e-08]
[1644461554220,32.3091834,112.43,112.42,1e-08]
[1644461554421,22.71806814,112.43,112.3,12.46]
[1644461554621,5.35698806,112.42,112.3,12.46]
[1644461554825,2.48798806,112.41,112.3,12.46]
[1644461555022,5.94512535,112.39,112.31,40.41456301]
[1644461555623,2.48446449,112.38,112.31,40.41456301]
[1644461555822,2.48446449,112.38,112.3,12.46]
[1644461556424,13.36,112.37,112.28,12.46]
[1644461556623,16.222,112.37,112.28,12.46]
[1644461556823,16.222,112.37,112.29,48.57925354]
[1644461558025,13.362,112.34,112.29,48.57925354]
[1644461561430,13.362,112.34,112.28,12.46]
[1644461562229,13.362,112.34,112.29,40.7696524]
[1644461569733,13.362,112.34,112.28,12.46]
[1644461570135,16.218,112.34,112.28,12.46]
[1644461570733,16.218,112.34,112.28,47.7021958]
[1644461571337,13.362,112.34,112.28,47.7021958]
[1644461573538,13.362,112.34,112.28,12.46]
[1644461573838,2.854,112.33,112.26,4.45]
[1644461574038,13.3653,112.31,112.26,4.45]
[1644461574339,13.3653,112.31,112.25,12.46]
[1644461574537,13.3653,112.31,112.26,40.89136318]
[1644461581346,14.60627144,112.31,112.26,40.89136318]
[1644461583450,1.24097144,112.3,112.26,40.89136318]
[1644461583650,1.24097144,112.31,112.26,40.89136318]
[1644461584975,1.24097144,112.3,112.26,40.89136318]
[1644461587678,0.00097144,112.3,112.26,40.89136318]
[1644461587879,2.856,112.33,112.27,12.46]
[1644461588079,2.858,112.36,112.28,44.06535381]
[1644461588381,22.9757,112.37,112.29,12.46]
[1644461588578,22.9757,112.37,112.3,45.35283476]
[1644461588777,22.9757,112.37,112.3,12.46]
[1644461588976,2.863,112.36,112.3,12.46]
[1644461589176,2.48305402,112.35,112.3,12.46]
[1644461589577,2.48305402,112.35,112.27,12.46]
[1644461589777,2.48305402,112.35,112.28,40.16280812]
[1644461589976,15.84695402,112.35,112.28,40.16280812]
[1644461590377,13.3639,112.35,112.28,40.16280812]
[1644461591379,13.3639,112.35,112.27,12.46]
[1644461592480,2.48315882,112.34,112.27,12.46]
[1644461592879,16.2203,112.33,112.27,56.57247327]
[1644461593279,16.2203,112.33,112.27,12.46]
[1644461593480,2.862,112.35,112.27,12.46]
[1644461593783,2.868,112.36,112.27,20.88]
[1644461593979,15.84573205,112.35,112.27,20.88]
[1644461594180,5.35943205,112.34,112.27,20.88]
[1644461594381,2.48443205,112.34,112.27,55.88823043]
[1644461594581,22.9757,112.37,112.27,55.88823043]
[1644461594782,2.887,112.36,112.27,57.7821025]
[1644461594986,2.48393249,112.36,112.28,4.45]
[1644461595181,2.48393249,112.36,112.29,61.44100171]
[1644461596486,15.84353249,112.36,112.29,48.08250171]
[1644461596683,2.48393249,112.35,112.29,12.46]
[1644461596885,2.48393249,112.36,112.29,12.46]
[1644461597485,13.3614,112.35,112.29,12.46]
[1644461597686,13.3614,112.35,112.29,47.26246776]
[1644461600487,13.3614,112.35,112.29,12.46]
[1644461601289,2.48208407,112.34,112.27,12.46]
[1644461601489,13.3645,112.32,112.26,38.04851846]
[1644461605997,47.4068,112.34,112.26,50.50851846]
[1644461605998,13.3629,112.33,112.26,50.50851846]
[1644461606196,24.2317,112.35,112.26,63.87141846]
[1644461606395,3.75988474,112.37,112.26,63.87141846]
[1644461606396,2.855,112.34,112.26,63.87141846]
[1644461606597,26.2656,112.38,112.26,63.87141846]
[1644461606796,2.48011921,112.37,112.28,34.70666068]
[1644461606998,2.48011921,112.37,112.28,47.16666068]
[1644461607195,2.48011921,112.37,112.28,62.42010725]
[1644461607596,2.854,112.38,112.29,6.0]
[1644461607796,2.856,112.41,112.3,53.30850382]
[1644461607998,2.48115221,112.4,112.31,4.45]
[1644461608197,17.4722418,112.42,112.32,46.73673461]
[1644461608400,5.34115221,112.41,112.32,46.73673461]
[1644461608599,2.48115221,112.41,112.33,4.449]
[1644461608798,2.48115221,112.4,112.33,26.529]
[1644461609000,51.13588474,112.44,112.33,26.529]
[1644461609301,2.47907781,112.43,112.33,26.529]
[1644461609505,2.47907781,112.43,112.34,34.4040641]
[1644461609699,13.3536,112.41,112.34,34.4040641]
[1644461610701,13.3536,112.41,112.34,47.7567641]
[1644461611601,13.3536,112.41,112.35,12.46]
[1644461612005,13.3536,112.41,112.36,42.99669084]
[1644461612203,13.3536,112.41,112.35,12.46]
[1644461612404,2.348,112.4,112.34,12.46]
[1644461612603,13.3565,112.39,112.34,12.46]
[1644461612804,15.56369534,112.39,112.32,12.46]
[1644461613204,0.008,112.4,112.33,43.41674553]
[1644461613407,24.56650315,112.46,112.34,12.46]
[1644461613617,2.47681564,112.45,112.34,18.46]
[1644461613806,2.47681564,112.45,112.34,65.09964657]
[1644461614005,20.80661841,112.46,112.35,1.89374657]
[1644461614206,20.80661841,112.46,112.36,47.0202625]
[1644461614409,35.55305389,112.46,112.36,47.0202625]
[1644461614807,34.15541841,112.46,112.36,47.0202625]
[1644461615009,24.3394,112.47,112.37,1.89374657]
[1644461615206,24.3394,112.47,112.38,16.907]
[1644461615409,24.3394,112.47,112.38,12.46]
[1644461615807,2.47244073,112.46,112.39,35.63342829]
[1644461616007,2.47244073,112.46,112.39,48.09342829]
[1644461616809,13.3503,112.45,112.39,48.09342829]
[1644461617212,30.60314536,112.47,112.39,48.09342829]
[1644461617410,24.3394,112.47,112.39,48.09342829]
[1644461618527,30.08346999,112.47,112.39,48.09342829]
[1644461619126,30.08346999,112.47,112.39,12.46]
[1644461619127,43.43076999,112.47,112.39,12.46]
[1644461619730,45.89859016,112.47,112.39,12.46]
[1644461620027,45.89859016,112.47,112.37,12.46]
[1644461620232,13.3529,112.44,112.37,12.46]
[1644461622429,4.51741996,112.43,112.37,12.46]
[1644461622627,13.3533,112.42,112.37,12.46]
[1644461623027,13.3533,112.42,112.36,45.62702302]
[1644461625330,13.3511,112.44,112.36,45.62702302]
[1644461625535,13.3511,112.44,112.36,50.07502302]
[1644461627631,13.3511,112.44,112.36,45.62702302]
[1644461628836,13.3511,112.44,112.36,58.08702302]
[1644461629034,13.3511,112.44,112.36,71.43692302]
[1644461629234,13.3489,112.45,112.36,71.43692302]
[1644461630737,13.3489,112.45,112.36,81.71492302]
[1644461635145,27.13288782,112.46,112.36,83.61957675]
[1644461635342,24.66506765,112.46,112.39,13.3466]
[1644461635542,37.6865,112.47,112.39,25.8066]
[1644461635744,37.72236765,112.47,112.4,4.447]
[1644461635943,37.6865,112.47,112.41,41.40771348]
[1644461637343,40.15432017,112.47,112.41,41.40771348]
[1644461640045,40.15432017,112.47,112.4,12.46]
[1644461640248,4.94518995,112.46,112.4,12.46]
[1644461640446,13.3494,112.44,112.38,12.46]
[1644461641045,13.3494,112.44,112.38,56.12146285]
[1644461645352,13.3484,112.45,112.38,69.46986285]
[1644461646353,2.46782017,112.46,112.38,69.46986285]
[1644461646852,2.50368782,112.47,112.39,1.90465373]
[1644461647051,0.03586765,112.48,112.4,16.907]
[1644461647251,0.03586765,112.48,112.42,13.3436]
[1644461647451,0.44661493,112.49,112.43,56.1904311]
[1644461647653,0.48248258,112.49,112.43,56.4404311]
[1644461647855,0.44661493,112.49,112.44,4.446]
[1644461648053,0.00661493,112.49,112.45,12.46]
[1644461648254,0.00661493,112.49,112.46,13.3376]
[1644461648454,0.00661493,112.49,112.47,6.06439993]
[1644461648653,0.00661493,112.49,112.48,47.96034338]
[1644461649064,47.96,112.48,112.37,16.17941885]
[1644461649257,47.96,112.48,112.29,3.73337086]
[1644461649258,9.29,112.36,112.25,2.52970485]
[1644461649455,4.66182002,112.28,112.19,2.53099238]
[1644461649656,29.57321996,112.2,112.09,6.32748095]
[1644461649860,44.632,112.18,112.07,190.73335497]
[1644461650056,44.632,112.18,112.07,102.55303832]
[1644461650259,13.3914,112.14,112.07,46.81783832]
[1644461650461,12.46,112.13,112.02,0.33021333]
[1644461650656,155.81,112.11,112.03,6.81462]
[1644461650857,291.18538,112.03,112.02,0.33021333]
[1644461651060,291.18538,112.03,111.92,4.461]
[1644461651061,297.66978667,112.02,111.93,47.7548145]
[1644461651259,12.46,112.03,111.93,47.7548145]
[1644461651260,21.629,112.03,111.93,47.7548145]
[1644461651558,21.629,112.03,111.95,4.45215366]
[1644461651756,21.629,112.03,111.89,4.466]
[1644461652157,21.629,112.03,111.9,1.90465373]
[1644461652158,9.169,112.03,111.9,1.90465373]
[1644461652359,9.169,112.03,111.91,4.465]
[1644461652558,12.46,112.05,111.91,4.465]
[1644461652756,12.46,112.05,111.92,43.73458083]
[1644461652961,12.46,112.05,111.94,38.95460556]
[1644461654161,160.274,112.04,111.91,4.464]
[1644461654460,170.47719534,112.03,111.87,4.465]
[1644461654658,4.466,112.02,111.87,4.465]
[1644461654858,25.8667,112.01,111.88,1.89993356]
[1644461655060,4.466,112.0,111.88,1.89993356]
[1644461655259,4.466,112.0,111.89,46.92331906]
[1644461655860,12.46,111.99,111.89,46.92331906]
[1644461656059,12.46,111.99,111.91,47.6381336]
[1644461656463,4.466,111.98,111.91,47.6381336]
[1644461656659,16.926,111.98,111.91,47.6381336]
[1644461656859,12.46,111.98,111.87,4.466]
[1644461657260,12.46,111.98,111.87,4.716]
[1644461657663,4.466,111.97,111.87,4.716]
[1644461657863,24.101,111.97,111.88,46.92337276]
[1644461658065,24.101,111.97,111.87,4.466]
[1644461658264,179.911,111.97,111.87,4.466]
[1644461658466,182.11819534,111.97,111.87,4.466]
[1644461658669,179.911,111.97,111.87,4.466]
[1644461659070,177.65219534,111.97,111.87,4.466]
[1644461659271,175.445,111.97,111.87,4.466]
[1644461659570,4.466,111.96,111.86,47.64115349]
[1644461659794,12.46,111.95,111.86,47.64115349]
[1644461660091,4.468,111.94,111.81,22.8058]
[1644461660292,4.468,111.94,111.77,2.16]
[1644461660293,155.81,111.91,111.77,0.22]
[1644461660492,155.81,111.89,111.77,0.22]
[1644461660695,16.931,111.88,111.77,0.22]
[1644461661091,12.46,111.88,111.77,0.22]
[1644461661291,4.471,111.87,111.75,39.12788922]
[1644461661501,4.471,111.87,111.72,12.46]
[1644461661502,28.403,111.87,111.77,46.40135812]
[1644461662293,30.61019534,111.87,111.77,46.40135812]
[1644461662694,28.403,111.87,111.77,46.40135812]
[1644461663297,12.46,111.89,111.79,46.2269644]
[1644461663694,4.47,111.88,111.79,46.2269644]
[1644461663899,28.439,111.88,111.79,46.2269644]
[1644461664101,23.969,111.88,111.79,46.2269644]
[1644461664299,4.47,111.87,111.79,46.2269644]
[1644461664499,16.93,111.87,111.79,46.2269644]
[1644461664699,12.46,111.87,111.79,46.2269644]
[1644461664897,4.471,111.86,111.79,46.2269644]
[1644461665096,0.45,111.98,111.79,46.2269644]
[1644461665294,12.46,111.93,111.79,0.25]
[1644461665495,12.46,111.93,111.8,4.468]
[1644461665694,4.469,111.92,111.8,0.25]
[1644461666094,12.46,111.94,111.81,4.469]
[1644461666297,4.469,111.93,111.82,46.8052982]
[1644461666499,4.469,111.93,111.82,46.3052982]
[1644461666697,4.469,111.93,111.82,46.5552982]
[1644461666898,12.46,111.94,111.84,39.74678869]
[1644461668303,4.468,111.93,111.84,39.74678869]
[1644461668508,12.46,111.94,111.84,39.74678869]
[1644461669311,4.468,111.97,111.84,39.74678869]
[1644461669504,47.808015,112.1,111.89,0.30476325]
[1644461669702,3.120215,112.1,111.92,0.3175744]
[1644461669903,3.120215,112.1,111.93,40.19795322]
[1644461670105,454.09389966,112.11,111.97,155.81]
[1644461670303,454.09389966,112.11,112.0,47.67262864]
[1644461670504,454.09389966,112.11,112.01,12.46]
[1644461670905,21.76733722,112.12,112.01,12.46]
[1644461671307,21.76733722,112.12,112.02,38.30149925]
[1644461671506,18.64712222,112.12,112.04,34.83381729]
[1644461671706,13.3978,112.15,112.05,12.46]
[1644461671908,32.03986774,112.15,112.05,12.46]
[1644461672309,407.51067469,112.18,112.05,168.27]
[1644461672508,407.51067469,112.18,112.07,155.81]
[1644461672708,0.4588,112.17,112.08,12.46]
[1644461672910,0.4588,112.17,112.08,48.81993844]
[1644461673107,0.4588,112.17,112.08,12.46]
[1644461673411,2.20719534,112.16,112.08,12.46]
[1644461673617,0.459,112.15,112.02,4.458]
[1644461673810,0.45,112.16,112.01,12.46]
[1644461674009,2.65719534,112.16,112.02,41.11397325]
[1644461674308,0.4595,112.15,112.02,41.11397325]
[1644461674708,0.4595,112.15,111.94,1.91592432]
[1644461674709,0.4595,112.15,112.04,41.01260945]
[1644461674908,407.51067469,112.18,112.04,53.47260945]
[1644461674909,0.4598,112.17,112.04,53.47260945]
[1644461675510,2.66699534,112.17,112.04,53.47260945]
[1644461675711,15.12699534,112.17,112.04,53.47260945]
[1644461676114,14.62699534,112.17,112.04,53.47260945]
[1644461676911,0.45,112.16,112.01,4.46]
[1644461677119,0.45,112.15,112.02,12.46]
[1644461677322,2.65719534,112.15,112.02,12.46]
[1644461677613,14.66719534,112.14,112.02,12.46]
[1644461677812,14.66719534,112.14,112.03,43.45529504]
[1644461678013,14.66719534,112.14,112.03,47.91529504]
[1644461678212,14.66719534,112.14,112.03,43.45529504]
[1644461679211,12.46,112.14,112.01,12.46]
[1644461679413,2.20719534,112.13,112.02,4.461]
[1644461679612,2.20719534,112.13,112.01,12.46]
[1644461680412,2.20719534,112.13,112.02,40.7989151]
[1644461680613,0.45,112.14,112.02,40.7989151]
[1644461680814,13.3953,112.15,112.03,4.461]
[1644461681014,2.20719534,112.17,112.04,48.70921274]
[1644461681221,28.31772017,112.19,112.06,38.18053414]
[1644461681514,25.8499,112.19,112.06,38.18053414]
[1644461681715,2.20719534,112.17,112.06,38.18053414]
[1644461681918,2.20719534,112.17,112.07,4.458]
[1644461682114,25.8499,112.19,112.08,35.0936226]
[1644461682814,13.3913,112.17,112.01,4.458]
[1644461683215,27.99290931,112.17,112.02,12.46]
[1644461683614,27.99290931,112.17,112.03,36.60024635]
[1644461683821,27.99290931,112.17,112.03,49.06024635]
[1644461685120,12.46,112.16,112.03,12.46]
[1644461685318,22.726,112.16,112.01,16.918]
[1644461685520,24.93319534,112.16,112.01,16.918]
[1644461685818,13.3945,112.15,112.01,16.918]
[1644461686043,25.8545,112.15,112.02,44.67564528]
[1644461686446,14.7005612,112.16,112.02,57.13564528]
[1644461686645,12.46,112.17,112.03,4.46]
[1644461686844,25.8519,112.17,112.04,58.24333143]
[1644461687044,25.8519,112.17,112.06,35.736548]
[1644461688156,28.05909534,112.17,112.06,35.736548]
[1644461688351,0.45,112.16,112.06,35.736548]
[1644461688648,15.60149534,112.15,112.06,35.236548]
[1644461688848,28.06149534,112.15,112.06,35.236548]
[1644461689151,13.3943,112.15,112.06,35.236548]
[1644461689353,14.66719534,112.17,112.06,35.17905066]
[1644461689548,14.66719534,112.17,112.08,48.38905359]
[1644461689847,28.05779534,112.17,112.08,48.38905359]
[1644461690247,15.59779534,112.17,112.08,43.72723357]
[1644461693750,15.59779534,112.17,112.05,16.918]
[1644461693952,127.12979534,112.17,112.05,4.458]
[1644461694151,0.45,112.16,112.05,4.458]
[1644461694361,13.3933,112.13,112.05,4.458]
[1644461694753,13.3933,112.13,112.06,48.30313797]
[1644461694952,2.20719534,112.17,112.06,48.30313797]
[1644461695154,422.43849486,112.18,112.06,48.30313797]
[1644461696655,2.45604567,112.17,112.06,48.30313797]
[1644461696857,132.61416584,112.17,112.06,48.30313797]
[1644461697055,2.20719534,112.16,112.06,48.30313797]
[1644461697253,116.76782017,112.17,112.04,12.46]
[1644461697754,118.97501551,112.17,112.04,12.46]
[1644461698156,2.46782017,112.16,112.04,12.46]
[1644461698356,4.92837047,112.16,112.05,36.26553537]
[1644461698753,13.39,112.15,112.05,36.26553537]
[1644461699154,15.85782017,112.15,112.05,36.26553537]
[1644461700054,15.85782017,112.15,112.05,48.72553537]
[1644461700255,13.39,112.15,112.05,48.72553537]
[1644461701257,15.85782017,112.15,112.05,48.72553537]
[1644461701454,4.94102442,112.14,112.05,36.26553537]
[1644461701855,4.94102442,112.14,112.05,48.72553537]
[1644461702057,13.39,112.15,112.06,4.46]
[1644461702254,15.85782017,112.15,112.07,39.00129368]
[1644461703256,2.47299507,112.14,112.07,39.00129368]
[1644461703457,15.85782017,112.15,112.07,39.00129368]
[1644461704359,15.85782017,112.15,112.05,12.46]
[1644461704662,4.94053508,112.14,112.05,12.46]
[1644461704858,18.32983508,112.14,112.05,12.46]
[1644461705056,13.3893,112.14,112.06,4.46]
[1644461705457,13.3893,112.14,112.06,49.48507667]
[1644461706058,13.3893,112.14,112.06,49.29660429]
[1644461707163,13.3893,112.14,112.06,44.83660429]
[1644461707758,1.23648278,112.12,112.06,44.83660429]
[1644461708360,1.23648278,112.12,112.05,12.46]
[1644461708762,1.23648278,112.12,112.02,16.92]
[1644461708961,1.23648278,112.11,112.02,16.92]
[1644461709161,1.23648278,112.1,112.02,16.92]
[1644461709459,1.23648278,112.1,112.03,34.48139013]
[1644461709961,1.23648278,112.11,112.03,34.48139013]
[1644461710161,0.73648278,112.11,112.03,34.48139013]
[1644461710563,51.56872017,112.13,112.03,34.48139013]
[1644461710962,51.56872017,112.13,112.03,46.94139013]
[1644461711763,13.3913,112.11,112.03,46.94139013]
[1644461712367,4.66254495,112.16,112.03,46.94139013]
[1644461712368,2.46782017,112.14,112.05,35.90307661]
[1644461712564,2.46782017,112.14,112.05,48.36307661]
[1644461712767,4.46,112.13,112.05,48.36307661]
[1644461712964,2.46782017,112.14,112.05,48.36307661]
[1644461713667,13.3889,112.13,112.05,48.36307661]
[1644461716169,15.85392017,112.15,112.05,48.36307661]
[1644461716369,13.3861,112.15,112.07,46.58607049]
[1644461716569,13.3861,112.15,112.08,12.46]
[1644461716769,13.3861,112.15,112.09,38.73836772]
[1644461716973,13.3861,112.15,112.09,12.46]
[1644461717170,13.3861,112.15,112.07,12.46]
[1644461717769,15.85392017,112.15,112.07,12.46]
[1644461718068,13.3861,112.15,112.07,12.46]
[1644461718269,4.458,112.14,112.07,12.46]
[1644461718470,13.389,112.12,112.07,12.46]
[1644461720070,13.389,112.12,112.04,12.46]
[1644461720271,13.389,112.12,112.04,48.80817626]
[1644461722481,13.389,112.12,112.04,12.46]
[1644461723576,13.389,112.12,112.05,37.70635254]
[1644461725175,13.389,112.12,112.05,58.78235254]
[1644461726678,13.3862,112.14,112.05,72.16885254]
[1644461728800,13.3862,112.14,112.05,72.41885254]
[1644461729497,13.3862,112.14,112.07,46.73131153]
[1644461729698,13.3862,112.14,112.07,59.19131153]
[1644461732299,13.3862,112.14,112.07,72.57581153]
[1644461732502,13.3836,112.16,112.07,83.04881153]
[1644461733200,13.3836,112.16,112.07,82.79881153]
[1644461733697,13.3836,112.16,112.07,72.57581153]
[1644461734299,4.458,112.15,112.07,72.57581153]
[1644461734499,13.3846,112.14,112.07,72.57581153]
[1644461738303,13.3846,112.14,112.07,25.8445]
[1644461738505,13.3846,112.14,112.07,12.46]
[1644461738705,15.59179534,112.14,112.04,4.46]
[1644461738906,13.3905,112.1,112.03,12.46]
[1644461739306,13.3905,112.1,112.03,49.12153526]
[1644461741909,13.3905,112.1,112.03,62.51093526]
[1644461744511,13.3871,112.11,112.03,72.05093526]
[1644461744712,13.3871,112.11,112.05,35.65369407]
[1644461745313,13.3871,112.11,112.06,12.46]
[1644461746012,13.3871,112.11,112.04,12.46]
[1644461746617,13.3871,112.11,112.05,43.40664757]
[1644461750116,17.8481,112.11,112.05,43.40664757]
[1644461751318,13.3871,112.11,112.05,43.40664757]
[1644461752319,17.8481,112.11,112.05,43.40664757]
[1644461753540,13.3871,112.11,112.05,43.40664757]
[1644461753722,13.3871,112.11,112.05,53.03064757]
[1644461754823,13.3858,112.12,112.05,78.87834757]
[1644461755625,41.82365461,112.16,112.05,79.12834757]
[1644461755826,17.8417,112.15,112.05,79.12834757]
[1644461756027,17.8417,112.15,112.05,78.87834757]
[1644461758228,13.3837,112.15,112.05,83.33834757]
[1644461760331,17.8437,112.15,112.05,83.33834757]
[1644461760731,17.8437,112.15,112.05,83.58834757]
[1644461761150,17.8437,112.15,112.05,40.1817]
[1644461761352,0.45,112.09,111.98,2.53383165]